fUSD/lending_fUSD_20260518
["ID","MTS","AMOUNT","RATE_DAILY","PERIOD"]
[422566771,1779095441000,-500.0,0.00017808,2]
[422566775,1779095441000,-500.0,0.00017808,2]
[422566777,1779095441000,-500.0,0.00017808,2]
[422566750,1779095441000,-500.0,0.00017808,2]
[422566759,1779095441000,-500.0,0.00017808,2]
[422566751,1779095441000,-500.0,0.00017808,2]
[422566734,1779095441000,-221.316405,0.00017808,2]
[422566749,1779095441000,-500.0,0.00017808,2]
[422566776,1779095441000,-500.0,0.00017808,2]
[422566720,1779095441000,-212.633177,0.00017527,2]
[422566724,1779095441000,-151.0,0.00017692,2]
[422566723,1779095441000,-151.0,0.00017637,2]
[422566727,1779095441000,-152.0,0.00017721,3]
[422566726,1779095441000,-736.0,0.00017702,2]
[422566721,1779095441000,-151.0,0.00017582,2]
[422566722,1779095441000,-274.01,0.00017595,2]
[422566725,1779095441000,-173.98145278,0.000177,2]
[422566729,1779095441000,-151.0,0.00017802,2]
[422566730,1779095441000,-500.0,0.00017807,6]
[422566728,1779095441000,-151.0,0.00017747,2]
[422566747,1779095441000,-500.0,0.00017808,2]
[422566731,1779095441000,-525.26898812,0.00017807,6]
[422566735,1779095441000,-221.316405,0.00017808,2]
[422566736,1779095441000,-221.316405,0.00017808,2]
[422566738,1779095441000,-500.0,0.00017808,2]
[422566737,1779095441000,-221.316405,0.00017808,2]
[422566740,1779095441000,-500.0,0.00017808,2]
[422566739,1779095441000,-500.0,0.00017808,2]
[422566741,1779095441000,-500.0,0.00017808,2]
[422566743,1779095441000,-500.0,0.00017808,2]
[422566742,1779095441000,-500.0,0.00017808,2]
[422566744,1779095441000,-500.0,0.00017808,2]
[422566746,1779095441000,-500.0,0.00017808,2]
[422566745,1779095441000,-500.0,0.00017808,2]
[422566733,1779095441000,-300.0,0.00017807,2]
[422566778,1779095441000,-500.0,0.00017808,2]
[422566732,1779095441000,-300.0,0.00017807,2]
[422566779,1779095441000,-500.0,0.00017808,2]
[422566810,1779095441000,-104629.08406291,0.00018,2]
[422566812,1779095441000,-350.0,0.00018,2]
[422566814,1779095441000,-219.9790632,0.00018,2]
[422566816,1779095441000,-221.316405,0.00018,2]
[422566817,1779095441000,-221.316405,0.00018,2]
[422566815,1779095441000,-221.316405,0.00018,2]
[422566818,1779095441000,-221.316406,0.00018,2]
[422566820,1779095441000,-282.868153,0.00018,2]
[422566822,1779095441000,-282.868153,0.00018,2]
[422566819,1779095441000,-200.593443,0.00018,2]
[422566821,1779095441000,-282.868153,0.00018,2]
[422566823,1779095441000,-282.868149,0.00018,2]
[422566837,1779095441000,-1800.47162974,0.000181,2]
[422566824,1779095441000,-169.29,0.00018014,2]
[422566825,1779095441000,-169.29,0.00018014,2]
[422566826,1779095441000,-151.0,0.00018022,2]
[422566827,1779095441000,-181.08010149,0.00018075,2]
[422566828,1779095441000,-208.73254903,0.00018075,2]
[422566832,1779095441000,-1481.23780761,0.00018075,2]
[422566831,1779095441000,-2157.14243826,0.00018075,2]
[422566829,1779095441000,-200.0,0.00018075,2]
[422566830,1779095441000,-217.15233878,0.00018075,2]
[422566834,1779095441000,-217.15233878,0.00018075,2]
[422566833,1779095441000,-370.6763878,0.00018075,2]
[422566835,1779095441000,-771.01748645,0.00018075,2]
[422566838,1779095441000,-1258.13,0.000181,2]
[422566836,1779095441000,-159.17981738,0.00018077,2]
[422566813,1779095441000,-410.09157864,0.00018,2]
[422566811,1779095441000,-1206.50743831,0.00018,2]
[422566780,1779095441000,-500.0,0.00017808,2]
[422566809,1779095441000,-151.0,0.00017967,2]
[422566808,1779095441000,-1224.0,0.00017913,2]
[422566781,1779095441000,-500.0,0.00017808,2]
[422566782,1779095441000,-500.0,0.00017808,2]
[422566786,1779095441000,-500.0,0.00017808,2]
[422566783,1779095441000,-500.0,0.00017808,2]
[422566784,1779095441000,-500.0,0.00017808,2]
[422566785,1779095441000,-500.0,0.00017808,2]
[422566789,1779095441000,-500.0,0.00017808,2]
[422566788,1779095441000,-500.0,0.00017808,2]
[422566791,1779095441000,-1238.26279439,0.0001789,2]
[422566790,1779095441000,-151.0,0.00017857,2]
[422566792,1779095441000,-300.0,0.00017899,2]
[422566796,1779095441000,-21338.9127353,0.000179,2]
[422566787,1779095441000,-500.0,0.00017808,2]
[422566793,1779095441000,-351.41551866,0.00017899,2]
[422566794,1779095441000,-21338.9127353,0.000179,2]
[422566804,1779095441000,-1354.0,0.00017913,2]
[422566805,1779095441000,-625.0,0.00017913,2]
[422566807,1779095441000,-1270.0,0.00017913,2]
[422566802,1779095441000,-150.0,0.00017913,2]
[422566800,1779095441000,-150.0,0.00017913,2]
[422566803,1779095441000,-3544.0,0.00017913,2]
[422566806,1779095441000,-927.0,0.00017913,2]
[422566801,1779095441000,-150.0,0.00017913,2]
[422566798,1779095441000,-151.0,0.00017912,2]
[422566797,1779095441000,-21338.9127353,0.000179,2]
[422566795,1779095441000,-21338.9127353,0.000179,2]
[422566799,1779095441000,-500.0,0.00017912,2]
[422566877,1779095442000,-194.72792766,0.00019171,2]
[422566880,1779095442000,-2405.68328531,0.00019171,2]
[422566879,1779095442000,-235.92920462,0.00019171,2]
[422566884,1779095442000,-3000.0,0.00019178,7]
[422566875,1779095442000,-151.0,0.00019101,2]
[422566868,1779095442000,-359.0,0.00019,2]
[422566871,1779095442000,-177.0,0.00019,2]
[422566873,1779095442000,-1272.0,0.00019,2]
[422566874,1779095442000,-157.0,0.00019,2]
[422566872,1779095442000,-158.0,0.00019,2]
[422566878,1779095442000,-200.0,0.00019171,2]
[422566876,1779095442000,-682.0,0.00019107,2]
[422566883,1779095442000,-3000.0,0.00019178,2]
[422566898,1779095442000,-157.087853,0.00019178,2]
[422566882,1779095442000,-239.98895003,0.00019171,2]
[422566885,1779095442000,-3000.0,0.00019178,12]
[422566886,1779095442000,-839.06718577,0.00019178,17]
[422566887,1779095442000,-221.88543242,0.00019178,2]
[422566888,1779095442000,-230.09519341,0.00019178,2]
[422566890,1779095442000,-247.43723805,0.00019178,2]
[422566893,1779095442000,-315.86294409,0.00019178,2]
[422566891,1779095442000,-256.59241585,0.00019178,2]
[422566889,1779095442000,-238.60871557,0.00019178,2]
[422566894,1779095442000,-151.0,0.00019178,2]
[422566892,1779095442000,-266.08633524,0.00019178,2]
[422566896,1779095442000,-151.0,0.00019178,2]
[422566869,1779095442000,-486.0,0.00019,2]
[422566881,1779095442000,-1592.87721993,0.00019171,2]
[422566870,1779095442000,-374.0,0.00019,2]
[422566852,1779095442000,-177.61,0.00018616,2]
[422566866,1779095442000,-5231.61011729,0.00019,2]
[422566895,1779095442000,-151.0,0.00019178,2]
[422566839,1779095442000,-183.27,0.00018131,2]
[422566840,1779095442000,-730.55,0.00018171,2]
[422566844,1779095442000,-59275.56,0.00018356,2]
[422566842,1779095442000,-219.9790632,0.000182,2]
[422566841,1779095442000,-410.09157864,0.000182,2]
[422566843,1779095442000,-500.0,0.00018355,7]
[422566846,1779095442000,-219.9790632,0.000184,2]
[422566845,1779095442000,-410.09157864,0.000184,2]
[422566847,1779095442000,-1040.7,0.0001841,2]
[422566848,1779095442000,-338.0,0.00018468,5]
[422566849,1779095442000,-410.09157864,0.000185,2]
[422566851,1779095442000,-160.0,0.00018573,2]
[422566850,1779095442000,-219.9790632,0.000185,2]
[422566858,1779095442000,-225.18697532,0.00018623,2]
[422566855,1779095442000,-225.18697532,0.00018623,2]
[422566854,1779095442000,-200.0,0.00018623,2]
[422566857,1779095442000,-1536.04360649,0.00018623,2]
[422566859,1779095442000,-153.64805936,0.00018623,2]
[422566853,1779095442000,-187.78006525,0.00018623,2]
[422566856,1779095442000,-2236.95670848,0.00018623,2]
[422566860,1779095442000,-410.09157864,0.000187,2]
[422566862,1779095442000,-814.38444037,0.0001888,2]
[422566864,1779095442000,-152.0,0.00018982,4]
[422566863,1779095442000,-2000.0,0.00018927,2]
[422566861,1779095442000,-219.9790632,0.000187,2]
[422566865,1779095442000,-4190.0,0.00019,2]
[422566867,1779095442000,-198.0,0.00019,2]
[422566897,1779095442000,-151.0,0.00019178,2]
[422566901,1779095442000,-500.0,0.00019534,2]
[422566899,1779095442000,-1116.93168818,0.00019323,5]
[422566935,1779095442000,-2000.0,0.0002,2]
[422566934,1779095442000,-400.0,0.0002,2]
[422566936,1779095442000,-198.0,0.0002,2]
[422566938,1779095442000,-175.90535047,0.0002,2]
[422566937,1779095442000,-359.0,0.0002,2]
[422566941,1779095442000,-175.90535047,0.0002,2]
[422566940,1779095442000,-175.90535047,0.0002,2]
[422566943,1779095442000,-486.0,0.0002,2]
[422566945,1779095442000,-177.0,0.0002,2]
[422566942,1779095442000,-175.90535048,0.0002,2]
[422566947,1779095442000,-200.0,0.0002,10]
[422566944,1779095442000,-374.0,0.0002,2]
[422566948,1779095442000,-158.0,0.0002,2]
[422566939,1779095442000,-175.90535047,0.0002,2]
[422566946,1779095442000,-1551.0,0.0002,2]
[422566950,1779095442000,-1778.0,0.0002,2]
[422566951,1779095442000,-1272.0,0.0002,2]
[422566953,1779095442000,-200.0,0.0002,2]
[422566952,1779095442000,-1882.39,0.0002,2]
[422566957,1779095442000,-2000.0,0.0002002,2]
[422566956,1779095442000,-2000.0,0.0002001,2]
[422566958,1779095442000,-2863.445447,0.0002003,2]
[422566959,1779095442000,-300.0,0.000201,10]
[422566954,1779095442000,-157.0,0.0002,2]
[422566900,1779095442000,-153.387827,0.00019323,2]
[422566955,1779095442000,-1000.0,0.0002,7]
[422566962,1779095442000,-152.0,0.00020243,5]
[422566961,1779095442000,-528.03498059,0.0002012,2]
[422566949,1779095442000,-194.168,0.0002,2]
[422566931,1779095442000,-2107.672545,0.0002,2]
[422566960,1779095442000,-499.49499999,0.00020119,9]
[422566929,1779095442000,-152.0,0.0002,2]
[422566933,1779095442000,-151.0,0.0002,2]
[422566905,1779095442000,-1258.13,0.000196,2]
[422566906,1779095442000,-201.93286099,0.00019719,2]
[422566908,1779095442000,-183.27,0.00019779,2]
[422566902,1779095442000,-500.0,0.00019534,3]
[422566907,1779095442000,-200.0,0.00019719,2]
[422566904,1779095442000,-500.0,0.00019547,2]
[422566910,1779095442000,-213.18,0.00019897,2]
[422566909,1779095442000,-319.78,0.00019897,2]
[422566911,1779095442000,-2140.19219685,0.000199,3]
[422566913,1779095442000,-1375.81277684,0.0001995,15]
[422566912,1779095442000,-888.083031,0.000199,2]
[422566917,1779095442000,-178.7376388,0.0002,2]
[422566903,1779095442000,-500.0,0.00019534,4]
[422566914,1779095442000,-500.0,0.00019999,8]
[422566915,1779095442000,-7079.0099119,0.0002,2]
[422566926,1779095442000,-1058.5393221,0.0002,2]
[422566927,1779095442000,-52317.08224419,0.0002,2]
[422566925,1779095442000,-200.0,0.0002,2]
[422566924,1779095442000,-537.81326358,0.0002,7]
[422566922,1779095442000,-1311.36258266,0.0002,2]
[422566928,1779095442000,-13089.48861455,0.0002,2]
[422566923,1779095442000,-2987.02397701,0.0002,7]
[422566920,1779095442000,-3950.0,0.0002,2]
[422566918,1779095442000,-1490.08061639,0.0002,5]
[422566919,1779095442000,-25915.80558917,0.0002,2]
[422566916,1779095442000,-1553.33838876,0.0002,2]
[422566921,1779095442000,-26769.59424995,0.0002,2]
[422567002,1779095443000,-215.11887611,0.00021,30]
[422567004,1779095443000,-359.0,0.00021,2]
[422567003,1779095443000,-198.0,0.00021,2]
[422567000,1779095443000,-78000.0,0.00021,30]
[422566997,1779095443000,-199.54371661,0.00021,2]
[422566999,1779095443000,-160.0,0.00021,7]
[422566998,1779095443000,-1230.48948908,0.00021,7]
[422566996,1779095443000,-1209.03378583,0.00021,2]
[422567006,1779095443000,-374.0,0.00021,2]
[422567001,1779095443000,-11636.07321934,0.00021,2]
[422566994,1779095443000,-1270.0,0.00020913,2]
[422567009,1779095443000,-208.5339928,0.00021,2]
[422567007,1779095443000,-177.0,0.00021,2]
[422567008,1779095443000,-165.73564378,0.00021,2]
[422567011,1779095443000,-1272.0,0.00021,2]
[422567010,1779095443000,-215.11887611,0.00021,2]
[422567013,1779095443000,-370.28431664,0.00021363,2]
[422567012,1779095443000,-157.0,0.00021,2]
[422567017,1779095443000,-225.15420585,0.000215,2]
[422567014,1779095443000,-200.0,0.00021363,2]
[422567015,1779095443000,-155.0,0.000214,2]
[422567016,1779095443000,-58336.63162231,0.000215,2]
[422567019,1779095443000,-1277.0,0.0002168,2]
[422566993,1779095443000,-927.0,0.00020913,2]
[422567005,1779095443000,-486.0,0.00021,2]
[422566992,1779095443000,-625.0,0.00020913,2]
[422566975,1779095443000,-3980.73,0.00020548,2]
[422566990,1779095443000,-3544.0,0.00020913,2]
[422567018,1779095443000,-152.0,0.00021503,6]
[422566963,1779095443000,-747.8093786,0.00020266,2]
[422566964,1779095443000,-599.60298507,0.00020266,2]
[422566966,1779095443000,-200.0,0.00020267,2]
[422566965,1779095443000,-209.40437684,0.00020267,2]
[422566967,1779095443000,-177.61,0.00020308,2]
[422566970,1779095443000,-3632.0,0.00020387,2]
[422566969,1779095443000,-1040.7,0.00020381,2]
[422566968,1779095443000,-173.52799035,0.00020312,8]
[422566971,1779095443000,-3275.617,0.00020387,2]
[422566973,1779095443000,-3980.73,0.00020548,2]
[422566974,1779095443000,-3980.73,0.00020548,2]
[422566976,1779095443000,-3980.72,0.00020548,2]
[422566984,1779095443000,-288.23169039,0.0002058,2]
[422566977,1779095443000,-2775.55,0.00020548,2]
[422566982,1779095443000,-150.0,0.0002058,2]
[422566978,1779095443000,-150.0,0.0002058,2]
[422566986,1779095443000,-22962.33398337,0.000207,2]
[422566981,1779095443000,-150.0,0.0002058,2]
[422566983,1779095443000,-150.0,0.0002058,2]
[422566980,1779095443000,-150.0,0.0002058,2]
[422566985,1779095443000,-2000.0,0.00020648,2]
[422566987,1779095443000,-217.15233878,0.00020815,2]
[422566989,1779095443000,-500.0,0.00020912,2]
[422566988,1779095443000,-200.0,0.00020815,2]
[422566991,1779095443000,-1354.0,0.00020913,2]
[422567020,1779095443000,-190.01670168,0.0002171,2]
[422566995,1779095443000,-1224.0,0.00020913,2]
[422567023,1779095443000,-7527.41158839,0.00021878,7]
[422567054,1779095443000,-374.0,0.00022,2]
[422567052,1779095443000,-486.0,0.00022,2]
[422567053,1779095443000,-9502.40386982,0.00022,4]
[422567056,1779095443000,-1272.0,0.00022,2]
[422567055,1779095443000,-177.0,0.00022,2]
[422567057,1779095443000,-157.0,0.00022,2]
[422567058,1779095443000,-274.01,0.00022033,2]
[422567062,1779095443000,-1040.7,0.00022353,2]
[422567064,1779095443000,-296.98,0.00022466,2]
[422567061,1779095443000,-158.0,0.00022312,2]
[422567063,1779095443000,-200.0,0.00022459,2]
[422567060,1779095443000,-227.0,0.00022312,2]
[422567059,1779095443000,-222.9,0.00022222,7]
[422567065,1779095443000,-372.45068152,0.00022485,2]
[422567066,1779095443000,-500.0,0.00022499,6]
[422567067,1779095443000,-169.84,0.00022603,2]
[422567068,1779095443000,-350.0,0.00022614,2]
[422567070,1779095443000,-350.0,0.00022614,2]
[422567072,1779095443000,-350.0,0.00022614,2]
[422567077,1779095443000,-158.0,0.00022614,2]
[422567069,1779095443000,-350.0,0.00022614,2]
[422567075,1779095443000,-350.0,0.00022614,2]
[422567076,1779095443000,-350.0,0.00022614,2]
[422567073,1779095443000,-350.0,0.00022614,2]
[422567021,1779095443000,-500.85125107,0.00021805,2]
[422567050,1779095443000,-198.0,0.00022,2]
[422567051,1779095443000,-359.0,0.00022,2]
[422567074,1779095443000,-350.0,0.00022614,2]
[422567047,1779095443000,-700.0,0.0002197,2]
[422567049,1779095443000,-450.0,0.00022,2]
[422567022,1779095443000,-1882.39,0.00021836,2]
[422567028,1779095443000,-5000.0,0.00021918,2]
[422567029,1779095443000,-262.114436,0.00021918,2]
[422567030,1779095443000,-800.0,0.00021918,2]
[422567026,1779095443000,-151.0,0.00021918,2]
[422567025,1779095443000,-200.0,0.00021911,2]
[422567027,1779095443000,-152.456236,0.00021918,2]
[422567032,1779095443000,-800.0,0.00021918,2]
[422567031,1779095443000,-800.0,0.00021918,2]
[422567033,1779095443000,-800.0,0.00021918,2]
[422567034,1779095443000,-800.0,0.00021918,2]
[422567036,1779095443000,-800.0,0.00021918,2]
[422567024,1779095443000,-215.11887611,0.000219,7]
[422567040,1779095443000,-900.0,0.00021918,2]
[422567048,1779095443000,-400.0,0.0002197,2]
[422567035,1779095443000,-800.0,0.00021918,2]
[422567046,1779095443000,-150.0,0.00021918,2]
[422567043,1779095443000,-900.0,0.00021918,2]
[422567044,1779095443000,-900.0,0.00021918,2]
[422567045,1779095443000,-900.0,0.00021918,2]
[422567037,1779095443000,-800.0,0.00021918,2]
[422567039,1779095443000,-900.0,0.00021918,2]
[422567038,1779095443000,-900.0,0.00021918,2]
[422567042,1779095443000,-900.0,0.00021918,2]
[422567041,1779095443000,-900.0,0.00021918,2]
[422567071,1779095443000,-350.0,0.00022614,2]
[422567103,1779095444000,-248.38,0.00023288,4]
[422567105,1779095444000,-173.52799035,0.00023488,11]
[422567115,1779095444000,-601.72,0.00023989,2]
[422567107,1779095444000,-180.57063447,0.00023544,2]
[422567109,1779095444000,-207.48000001,0.00023744,2]
[422567108,1779095444000,-1882.39,0.00023672,2]
[422567106,1779095444000,-1170.15412004,0.000235,2]
[422567111,1779095444000,-1354.0,0.00023913,2]
[422567110,1779095444000,-3544.0,0.00023913,2]
[422567112,1779095444000,-625.0,0.00023913,2]
[422567118,1779095444000,-217.19153994,0.00024,2]
[422567114,1779095444000,-1224.0,0.00023913,2]
[422567117,1779095444000,-500.0,0.00024,2]
[422567116,1779095444000,-1700.0,0.00024,3]
[422567120,1779095444000,-493.82650656,0.00024,2]
[422567123,1779095444000,-1291.75792411,0.00024,2]
[422567119,1779095444000,-363.50923321,0.00024,2]
[422567122,1779095444000,-185.88427839,0.00024,2]
[422567124,1779095444000,-152.0,0.00024025,8]
[422567104,1779095444000,-3632.0,0.00023387,2]
[422567121,1779095444000,-378.7131503,0.00024,2]
[422567113,1779095444000,-1270.0,0.00023913,2]
[422567099,1779095444000,-621.78829552,0.00023005,2]
[422567086,1779095444000,-150.0,0.00022831,2]
[422567100,1779095444000,-200.0,0.00023007,2]
[422567127,1779095444000,-2313.0,0.00024135,3]
[422567079,1779095444000,-5000.0,0.00022772,2]
[422567078,1779095444000,-152.0,0.00022764,7]
[422567080,1779095444000,-500.0,0.00022794,2]
[422567082,1779095444000,-5000.0,0.00022795,2]
[422567081,1779095444000,-5000.0,0.00022795,2]
[422567083,1779095444000,-5000.0,0.00022795,2]
[422567084,1779095444000,-5000.0,0.00022795,2]
[422567085,1779095444000,-5000.0,0.00022795,2]
[422567088,1779095444000,-151.0,0.00023,2]
[422567090,1779095444000,-23111.0,0.00023,30]
[422567089,1779095444000,-1012.95481533,0.00023,2]
[422567092,1779095444000,-359.0,0.00023,2]
[422567091,1779095444000,-198.0,0.00023,2]
[422567093,1779095444000,-486.0,0.00023,2]
[422567094,1779095444000,-374.0,0.00023,2]
[422567096,1779095444000,-1272.0,0.00023,2]
[422567095,1779095444000,-177.0,0.00023,2]
[422567101,1779095444000,-248.0,0.0002327,2]
[422567097,1779095444000,-172.13495178,0.00023,2]
[422567102,1779095444000,-240.0,0.0002327,2]
[422567098,1779095444000,-775.47832561,0.00023005,2]
[422567126,1779095444000,-515.76,0.0002411,2]
[422567087,1779095444000,-814.38444037,0.0002286,2]
[422567128,1779095444000,-1040.7,0.00024324,2]
[422567155,1779095444000,-227.0,0.00024618,2]
[422567154,1779095444000,-150.0,0.00024618,2]
[422567156,1779095444000,-1000.0,0.00024658,2]
[422567158,1779095444000,-151.0,0.00024658,2]
[422567157,1779095444000,-151.0,0.00024658,2]
[422567163,1779095444000,-163.0,0.00024775,3]
[422567160,1779095444000,-192.14,0.00024658,2]
[422567164,1779095444000,-2311.0,0.00024775,3]
[422567161,1779095444000,-150.0,0.00024658,2]
[422567162,1779095444000,-150.0,0.000247,2]
[422567159,1779095444000,-153.665324,0.00024658,2]
[422567165,1779095444000,-161.0,0.0002484,2]
[422567167,1779095444000,-500.0,0.00024999,2]
[422567166,1779095444000,-500.0,0.00024999,9]
[422567168,1779095444000,-500.0,0.00024999,2]
[422567169,1779095444000,-500.0,0.00024999,2]
[422567170,1779095444000,-325.97461365,0.00024999,2]
[422567171,1779095444000,-498894.71343318,0.00025,2]
[422567173,1779095444000,-151.0,0.00024658,2]
[422567172,1779095444000,-152.0,0.00014891,7]
[422567175,1779095444000,-68780.91747912,0.00025,2]
[422567152,1779095444000,-150.0,0.00024618,2]
[422567151,1779095444000,-150.0,0.00024618,2]
[422567174,1779095444000,-151.0,0.00024658,2]
[422567148,1779095444000,-160.4741987,0.00024397,2]
[422567150,1779095444000,-155.0,0.000245,2]
[422567130,1779095444000,-4465.4,0.00024397,2]
[422567129,1779095444000,-151.0,0.00024397,2]
[422567131,1779095444000,-10000.0,0.00024397,2]
[422567133,1779095444000,-5000.0,0.00024397,2]
[422567132,1779095444000,-5000.0,0.00024397,2]
[422567135,1779095444000,-5000.0,0.00024397,2]
[422567136,1779095444000,-5000.0,0.00024397,2]
[422567134,1779095444000,-5000.0,0.00024397,2]
[422567138,1779095444000,-5000.0,0.00024397,2]
[422567137,1779095444000,-5000.0,0.00024397,2]
[422567125,1779095444000,-601.72,0.0002411,2]
[422567140,1779095444000,-2000.0,0.00024397,2]
[422567141,1779095444000,-2000.0,0.00024397,2]
[422567143,1779095444000,-500.0,0.00024397,2]
[422567142,1779095444000,-4474.91678066,0.00024397,2]
[422567145,1779095444000,-162.0,0.00024397,2]
[422567144,1779095444000,-162.0,0.00024397,2]
[422567146,1779095444000,-162.0,0.00024397,2]
[422567153,1779095444000,-150.0,0.00024618,2]
[422567139,1779095444000,-2000.0,0.00024397,2]
[422567147,1779095444000,-162.0,0.00024397,2]
[422567149,1779095444000,-1258.13,0.000244,7]
[422567177,1779095445000,-151.77596545,0.00014799,2]
[422567179,1779095445000,-275.0,0.00018468,5]
[422567176,1779095445000,-827.18086267,0.00014799,2]
[422567178,1779095445000,-768.48847104,0.00014799,2]
[422567181,1779095445000,-151.0,0.00024658,2]
[422567182,1779095445000,-151.0,0.00024658,2]
[422567183,1779095445000,-133.75876193,0.00024658,2]
[422567184,1779095445000,-17.24123807,0.00024658,2]
[422567185,1779095445000,-151.0,0.00024658,2]
[422567186,1779095445000,-269.694954,0.00024658,2]
[422567188,1779095445000,-296.82102635,0.000149,2]
[422567187,1779095445000,-64.22380793,0.00025,2]
[422567180,1779095445000,-310.0,0.00019178,5]
[422567197,1779095446000,-500.0,0.00014249,2]
[422567198,1779095446000,-32.37085421,0.000149,2]
[422567200,1779095446000,-200.0,0.00016638,2]
[422567199,1779095446000,-949.134,0.00015166,2]
[422567201,1779095446000,-930.0,0.00018166,2]
[422567205,1779095446000,-3918.37221426,0.00025,2]
[422567204,1779095446000,-148.05369414,0.00024166,2]
[422567203,1779095446000,-781.94630586,0.00024166,2]
[422567217,1779095446000,-363.05002367,0.00025,2]
[422567202,1779095446000,-930.0,0.00021166,2]
[422567240,1779095458000,198.58022,0.00028088,120]
[422567241,1779095493000,2000.0,0.00029713,120]
[422567242,1779095501000,500.0,0.0003,120]
[422567244,1779095540000,500.0,0.0003,120]
[422567243,1779095540000,500.0,0.0003,120]
[422567245,1779095541000,500.0,0.0003,120]
[422567246,1779095543000,500.0,0.0003,120]
[422567247,1779095544000,500.0,0.0003,120]
[422567248,1779095545000,500.0,0.0003,120]
[422567249,1779095546000,500.0,0.0003,120]
[422567250,1779095547000,500.0,0.0003,120]
[422567251,1779095549000,500.0,0.0003,120]
[422567252,1779095550000,500.0,0.0003,120]
[422567253,1779095551000,500.0,0.0003,120]
[422567254,1779095552000,500.0,0.0003,120]
[422567255,1779095553000,500.0,0.0003,120]
[422567256,1779095554000,500.0,0.0003,120]
[422567257,1779095555000,500.0,0.0003,120]
[422567258,1779095556000,500.0,0.0003,120]
[422567259,1779095557000,500.0,0.0003,120]
[422567260,1779095558000,500.0,0.0003,120]
[422567261,1779095559000,500.0,0.0003,120]
[422567262,1779095561000,500.0,0.0003,120]
[422567263,1779095623000,500.0,0.0003,120]
[422567264,1779095625000,500.0,0.0003,120]
[422567265,1779095626000,500.0,0.0003,120]
[422567266,1779095629000,500.0,0.0003,120]
[422567267,1779095715000,199.0,0.00023305,120]
[422567268,1779095716000,199.0,0.0002447,120]
[422567269,1779095718000,199.0,0.00025693,120]
[422567270,1779095719000,199.0,0.00026978,120]
[422567271,1779095720000,199.0,0.00028327,120]
[422567272,1779095722000,199.0,0.00029743,120]
[422567273,1779095729000,179.0,0.00022213,120]
[422567274,1779095745000,248.85,0.00028741,120]
[422567281,1779095969000,-250.0,0.00014,2]
[422567280,1779095969000,-130618.4335,0.0001395,2]
[422567278,1779095969000,-163.0,0.00013939,2]
[422567279,1779095969000,-1200.0,0.00013949,2]
[422567276,1779095969000,-300.0,0.00013895,2]
[422567277,1779095969000,-304.05877207,0.00013938,2]
[422567275,1779095969000,-201.55687821,0.0001385,2]
[422567282,1779096006000,159.0,0.00024586,120]
[422567283,1779096008000,159.0,0.00025815,120]
[422567284,1779096009000,159.0,0.00027106,120]
[422567285,1779096010000,159.0,0.00028461,120]
[422567286,1779096012000,159.0,0.00029884,120]